bitfinex/quotes_ETHUSD_20250216
["timestamp","ask_amount","ask_price","bid_price","bid_amount"]
[1739679597603,10.15004253,2699.1,2699.0,0.18648931]
[1739679597905,10.15004253,2699.1,2699.0,0.09840097]
[1739679606535,6.38594253,2699.1,2699.0,0.09840097]
[1739679606718,5.26037644,2699.1,2699.0,0.09840097]
[1739679606899,5.26037644,2699.1,2699.0,0.18647779]
[1739679607095,0.00555679,2699.4,2699.1,0.7577]
[1739679607495,0.00555679,2699.4,2699.2,0.08792499]
[1739679613242,0.00555679,2699.4,2699.0,0.09840097]
[1739679613414,1.96877123,2699.4,2699.0,0.09840097]
[1739679613811,1.96877123,2699.4,2699.1,0.08761812]
[1739679615441,0.2552269,2699.4,2699.1,0.08761812]
[1739679615619,0.00555679,2699.4,2699.1,0.08761812]
[1739679616440,0.7776,2699.3,2699.1,0.08761812]
[1739679617030,0.00555679,2699.4,2699.1,0.08761812]
[1739679619736,0.00555679,2699.4,2699.1,0.87711812]
[1739679627149,0.00555679,2699.4,2699.1,3.79254812]
[1739679627350,0.00555679,2699.4,2699.3,0.7635]
[1739679627730,0.00555679,2699.4,2699.3,0.85098934]
[1739679632674,0.00555679,2699.4,2699.3,0.90078128]
[1739679632870,0.00555679,2699.4,2699.3,4.60544128]
[1739679633742,0.00555679,2699.4,2699.3,5.19248448]
[1739679634072,0.00555679,2699.4,2699.3,6.2725681]
[1739679634836,0.00555679,2699.4,2699.3,6.32441065]
[1739679635058,0.00555679,2699.4,2699.3,6.2873681]
[1739679635664,0.00555679,2699.4,2699.3,6.32440757]
[1739679636887,0.00555679,2699.4,2699.3,6.2873681]
[1739679639555,0.00555679,2699.4,2699.3,9.32440515]
[1739679639772,0.00555679,2699.4,2699.3,9.2873681]
[1739679640178,0.00555679,2699.4,2699.3,14.6573681]
[1739679643088,0.00555679,2699.4,2699.3,14.5581681]
[1739679643391,0.00555679,2699.4,2699.3,14.64860398]
[1739679653764,0.00555679,2699.4,2699.3,12.98147716]
[1739679654865,0.00555679,2699.4,2699.3,8.16147716]
[1739679662514,0.00555679,2699.4,2699.3,7.38317716]
[1739679668183,0.00555679,2699.4,2699.3,0.67851716]
[1739679668409,0.79045679,2699.4,2699.3,0.12851716]
[1739679668814,0.79045679,2699.4,2699.2,0.55]
[1739679669010,0.79045679,2699.4,2699.3,0.11950338]
[1739679669541,0.79045679,2699.4,2699.3,0.11524367]
[1739679669705,1.0408569,2699.4,2699.3,0.11524367]
[1739679669905,0.2559569,2699.4,2699.0,0.09840097]
[1739679670101,0.2559569,2699.4,2699.1,0.10726058]
[1739679670102,0.7849,2699.3,2699.1,0.10726058]
[1739679679070,0.7849,2699.3,2699.0,0.09840097]
[1739679679438,0.7849,2699.3,2699.1,0.10737528]
[1739679683507,1.1555,2699.3,2699.1,0.10737528]
[1739679683798,0.7849,2699.3,2699.1,0.10737528]
[1739679685059,0.00555679,2699.4,2699.1,0.10737528]
[1739679685559,0.00555679,2699.4,2699.1,3.81228528]
[1739679685765,0.00555679,2699.4,2699.1,0.10737528]
[1739679686183,0.00555679,2699.4,2699.1,3.81229528]
[1739679686718,0.00555679,2699.4,2699.2,0.55]
[1739679686933,0.00555679,2699.4,2699.2,4.25473]
[1739679687086,0.00555679,2699.4,2699.3,4.36200638]
[1739679687984,0.00555679,2699.4,2699.3,5.13640638]
[1739679688313,0.00555679,2699.4,2699.3,1.43174638]
[1739679688494,0.00555679,2699.4,2699.3,5.13640638]
[1739679691049,0.00555679,2699.4,2699.3,6.10442168]
[1739679702463,0.00555679,2699.4,2699.3,0.65734638]
[1739679704182,0.00555679,2699.4,2699.3,4.36200638]
[1739679704473,0.00555679,2699.4,2699.3,4.26280638]
[1739679704679,0.00555679,2699.4,2699.3,4.35840233]
[1739679705478,0.00555679,2699.4,2699.3,5.14490233]
[1739679706210,0.00555679,2699.4,2699.3,6.57652963]
[1739679707261,0.00555679,2699.4,2699.3,5.14490233]
[1739679719623,0.00555679,2699.4,2699.3,4.35840233]
[1739679719785,0.00555679,2699.4,2699.3,0.65374233]
[1739679719990,0.00555679,2699.4,2699.3,4.35840233]
[1739679729429,0.00555679,2699.4,2699.3,0.65374233]
[1739679729807,0.00555679,2699.4,2699.3,4.35840233]
[1739679733335,0.00555679,2699.4,2699.3,0.65374233]
[1739679733537,0.81825679,2699.4,2699.3,0.10374233]
[1739679734036,0.81825679,2699.4,2699.3,0.10365792]
[1739679734234,0.81825679,2699.4,2699.0,0.09840097]
[1739679734438,0.81825679,2699.4,2699.3,0.10365792]
[1739679734600,0.81825679,2699.4,2699.0,0.09840097]
[1739679734803,0.81825679,2699.4,2699.3,0.10365792]
[1739679735104,0.81825679,2699.4,2699.0,0.09840097]
[1739679735304,0.81825679,2699.4,2699.3,0.10365792]
[1739679735529,0.8127,2699.3,2699.0,0.09840097]
[1739679743319,0.8127,2699.3,2699.1,0.10391383]
[1739679763880,0.8127,2699.3,2699.1,0.10391383]
[1739679765283,0.8127,2699.3,2699.1,0.09662007]
[1739679766553,1.71262151,2699.2,2699.1,0.09662007]
[1739679766752,2.53812151,2699.2,2699.1,0.09662007]
[1739679767453,2.79248934,2699.2,2699.1,0.09662007]
[1739679768382,0.8255,2699.1,2699.0,0.09840097]
[1739679768793,0.8255,2699.1,2699.0,0.18851117]
[1739679776160,0.25436783,2699.2,2699.0,0.18851117]
[1739679776562,6.08627644,2699.3,2699.0,0.18851117]
[1739679776762,0.8259,2699.3,2699.0,0.18851117]
[1739679780665,0.9251,2699.3,2699.0,0.18851117]
[1739679781136,1.0243,2699.3,2699.0,0.18851117]
[1739679799214,1.71262151,2699.2,2699.0,0.18851117]
[1739679799401,1.03339215,2699.1,2699.0,0.18851117]
[1739679799579,1.03339215,2699.1,2699.0,0.09840097]
[1739679809227,6.29376859,2699.1,2699.0,0.09840097]
[1739679818032,5.53406859,2699.1,2699.0,0.09840097]
[1739679823118,5.79506859,2699.1,2699.0,0.09840097]
[1739679831666,6.55686859,2699.1,2699.0,0.09840097]
[1739679836566,5.79506859,2699.1,2699.0,0.09840097]
[1739679841271,6.55686859,2699.1,2699.0,0.09840097]
[1739679853271,5.79506859,2699.1,2699.0,0.09840097]
[1739679855795,5.26037644,2699.1,2699.0,0.09840097]
[1739679859415,5.26037644,2699.1,2699.0,0.17661293]
[1739679859909,5.26037644,2699.1,2699.0,0.98951293]
[1739679868516,0.2976,2699.3,2699.0,0.98951293]
[1739679872115,0.2976,2699.3,2699.0,2.70213444]
[1739679872445,0.2976,2699.3,2699.2,0.8129]
[1739679872951,0.2976,2699.3,2699.2,0.89065703]
[1739679877944,0.2976,2699.3,2699.2,6.26817854]
[1739679878320,0.2976,2699.3,2699.2,6.3052229]
[1739679879823,0.2976,2699.3,2699.2,6.81817854]
[1739679880033,0.2976,2699.3,2699.2,9.65702174]
[1739679882277,0.2976,2699.3,2699.2,7.94440023]
[1739679889975,0.2976,2699.3,2699.2,8.68174073]
[1739679929223,6.79e-06,2699.4,2699.3,5.00996]
[1739679929423,0.7798,2700.4,2699.9,6.70384]
[1739679929720,0.7798,2700.4,2699.9,8.96646151]
[1739679929921,0.7798,2700.4,2699.9,9.04298375]
[1739679938324,0.77635432,2700.6,2699.9,11.51190526]
[1739679938729,0.77635432,2700.6,2699.9,9.79928375]
[1739679938925,0.77635432,2700.6,2699.9,12.96142728]
[1739679940334,0.77635432,2700.6,2699.9,11.24880577]
[1739679943048,0.77635432,2700.6,2699.9,16.61880577]
[1739679944112,0.00555432,2700.6,2699.9,18.33142728]
[1739679945448,0.00555432,2700.6,2699.9,16.61880577]
[1739679947750,0.7708,2700.5,2699.9,16.61880577]
[1739679948553,0.7708,2700.5,2699.9,18.33142728]
[1739679948723,0.00555432,2700.6,2699.9,18.33142728]
[1739679955847,0.752,2700.5,2699.9,18.33142728]
[1739679956232,0.752,2700.5,2699.9,16.61880577]
[1739679956619,0.752,2700.5,2699.9,18.51797785]
[1739679958762,0.752,2700.5,2699.9,18.33142728]
[1739679959058,0.752,2700.5,2699.9,16.61880577]
[1739679960856,0.752,2700.5,2699.9,18.33142728]
[1739679961646,0.752,2700.5,2699.9,16.61880577]
[1739679964267,0.8319,2700.2,2699.9,16.12350577]
[1739679968468,0.8319,2700.4,2699.9,16.12350577]
[1739679976773,0.8319,2700.4,2699.9,17.83612728]
[1739679977855,0.8319,2700.4,2699.9,16.12350577]
[1739679978058,0.8319,2700.4,2699.9,16.92020577]
[1739679978871,0.8319,2700.4,2699.9,18.63282728]
[1739679980986,0.8319,2700.4,2699.9,16.92020577]
[1739679981878,0.8319,2700.4,2699.9,18.63282728]
[1739679984075,0.8319,2700.4,2700.2,3.70342]
[1739679984398,0.8319,2700.4,2700.2,5.49164046]
[1739679984562,0.8319,2700.4,2700.2,6.47544495]
[1739679999625,0.81515493,2700.3,2700.2,5.49164046]
[1739679999830,0.81515493,2700.3,2700.2,3.77901895]
[1739680000272,0.81515493,2700.3,2700.2,5.49164046]
[1739680002876,0.00555493,2700.3,2700.2,5.49164046]
[1739680005486,0.79525493,2700.3,2700.2,5.49164046]
[1739680023042,0.79525493,2700.3,2700.2,5.49164046]
[1739680036559,0.00555493,2700.3,2700.2,5.49164046]
[1739680039463,0.79175493,2700.3,2700.2,0.07559895]
[1739680039761,0.79175493,2700.3,2700.0,0.09284445]
[1739680040057,0.79175493,2700.3,2700.2,0.07333309]
[1739680040385,0.79175493,2700.3,2700.2,0.06814367]
[1739680040870,0.79175493,2700.3,2700.0,0.09284445]
[1739680041087,0.79175493,2700.3,2700.2,0.06814367]
[1739680041237,0.79175493,2700.3,2700.1,0.06822137]
[1739680041564,0.79175493,2700.3,2700.2,0.06814367]
[1739680041739,0.79175493,2700.3,2700.0,0.09284445]
[1739680041935,0.79175493,2700.3,2700.1,0.06822137]
[1739680045370,1.41524338,2700.3,2700.1,0.06822137]
[1739680048159,0.7862,2700.2,2700.1,0.06822137]
[1739680082373,0.00555493,2700.3,2700.1,0.06822137]
[1739680128743,0.79575493,2700.3,2700.1,0.06822137]
[1739680135609,0.74575493,2700.3,2700.1,0.06822137]
[1739680136347,0.37457549,2700.2,2700.1,0.06822137]
[1739680140435,6.00613137,2700.3,2700.2,0.00555514]
[1739680140823,6.00613137,2700.3,2700.2,0.07147238]
[1739680144331,5.26037644,2700.3,2700.2,0.07147238]
[1739680154075,6.2437296,2700.5,2700.2,0.07147238]
[1739680160084,5.4431296,2700.5,2700.2,0.07147238]
[1739680177894,0.00555432,2700.6,2700.3,0.7778]
[1739680178068,0.00555432,2700.6,2700.4,1.71262151]
[1739680178272,0.00555432,2700.6,2700.5,0.7778]
[1739680178468,0.00555432,2700.6,2700.5,0.84344967]
[1739680202147,0.00555432,2700.6,2700.5,4.54645967]
[1739680202446,0.00555432,2700.6,2700.5,5.54268579]
[1739680202640,0.00555432,2700.6,2700.5,1.83967579]
[1739680203641,0.00555432,2700.6,2700.5,0.84344967]
[1739680203943,0.00555432,2700.6,2700.5,0.06564967]
[1739680213269,0.00555432,2700.6,2700.5,0.84104967]
[1739680214570,0.00555432,2700.6,2700.5,4.54405967]
[1739680215836,0.00555432,2700.6,2700.5,0.84104967]
[1739680216033,0.00555432,2700.6,2700.5,1.46673079]
[1739680217572,0.00555432,2700.6,2700.5,1.40108112]
[1739680217734,0.00555432,2700.6,2700.5,1.46645475]
[1739680219167,0.00555432,2700.6,2700.5,5.16946475]
[1739680219975,0.00555432,2700.6,2700.5,1.46645475]
[1739680220567,0.00555432,2700.6,2700.5,5.16946475]
[1739680220775,0.00555432,2700.6,2700.5,1.46645475]
[1739680221760,0.00555432,2700.6,2700.5,5.16946475]
[1739680222576,0.00555432,2700.6,2700.5,5.71946475]
[1739680224746,0.00555432,2700.6,2700.5,5.75648792]
[1739680225951,0.00555432,2700.6,2700.5,5.71946475]
[1739680230407,0.00555432,2700.6,2700.5,4.94406475]
[1739680230805,0.00555432,2700.6,2700.5,0.69105475]
[1739680230950,0.00555432,2700.6,2700.5,0.06537363]
[1739680233372,0.81945432,2700.6,2700.5,0.06537363]
[1739680234710,0.81945432,2700.6,2700.2,5.42158665]
[1739680235105,0.81945432,2700.6,2700.3,0.06063873]
[1739680259057,1.4274374,2700.6,2700.3,0.06063873]
[1739680262361,0.6135374,2700.6,2700.3,0.06063873]
[1739680262554,0.8267,2700.5,2700.3,0.06063873]
[1739680265080,0.00555432,2700.6,2700.3,0.81163873]
[1739680267289,0.00555432,2700.6,2700.3,0.06063873]
[1739680268536,0.00555432,2700.6,2700.3,3.76390873]
[1739680268737,0.00555432,2700.6,2700.3,0.06063873]
[1739680269345,0.00555432,2700.6,2700.3,3.76390873]
[1739680269547,0.00555432,2700.6,2700.4,3.70305]
[1739680269757,0.00555432,2700.6,2700.5,0.751]
[1739680270187,0.00555432,2700.6,2700.5,0.81179601]
[1739680270935,0.00555432,2700.6,2700.5,0.06079601]
[1739680271177,0.00555432,2700.6,2700.2,9.87590665]
[1739680271337,0.00555432,2700.6,2700.2,10.87278176]
[1739680271532,0.00555432,2700.6,2700.3,0.06092071]
[1739680277705,0.00555432,2700.6,2700.3,0.06092071]
[1739680281354,0.8224,2700.5,2700.3,0.06092071]
[1739680286796,0.00555432,2700.6,2700.3,0.06092071]
[1739680291193,0.00555432,2700.6,2700.3,0.89192071]
[1739680291397,0.00555432,2700.6,2700.3,1.3520013]
[1739680293072,0.00555432,2700.6,2700.4,3.70312]
[1739680293477,0.00555432,2700.6,2700.5,0.06086667]
[1739680294689,0.00555432,2700.6,2700.3,4.99436059]
[1739680294993,0.00555432,2700.6,2700.5,0.06086667]
[1739680295492,0.00555432,2700.6,2700.3,4.99436059]
[1739680295695,0.00555432,2700.6,2700.5,0.06086667]
[1739680295906,0.00555432,2700.6,2700.4,0.06094435]
[1739680296067,0.00555432,2700.6,2700.3,4.99436059]
[1739680296401,0.00555432,2700.6,2700.4,0.06094435]
[1739680299901,0.00555432,2700.6,2700.4,3.76404435]
[1739680300071,0.00555432,2700.6,2700.4,1.10859951]
[1739680306519,0.00555432,2700.6,2700.4,0.06094435]
[1739680307982,0.77035432,2700.6,2700.2,1.71817665]
[1739680308182,0.77035432,2700.6,2700.5,0.06080531]
[1739680308415,0.77035432,2700.6,2700.2,0.00555514]
[1739680308620,0.77035432,2700.6,2700.5,0.06080531]
[1739680309439,0.77035432,2700.6,2700.2,0.00555514]
[1739680309635,0.77035432,2700.6,2700.5,0.06079381]
[1739680309939,0.8116,2700.5,2700.2,0.00555514]
[1739680311790,0.8116,2700.5,2700.3,0.06094918]
[1739680314529,6.07197644,2700.5,2700.3,0.06094918]
[1739680314926,6.25720483,2700.5,2700.3,0.06094918]
[1739680318552,0.8116,2700.4,2700.3,0.06094918]
[1739680318952,1.43787592,2700.4,2700.3,0.06094918]
[1739680319763,0.62627592,2700.4,2700.2,0.00555514]
[1739680319954,0.8116,2700.3,2700.2,0.00555514]
[1739680325557,3.8116,2700.3,2700.2,0.00555514]
[1739680325747,3.8233,2700.3,2700.2,5.14e-06]
[1739680325963,10.34328667,2700.3,2700.2,5.14e-06]
[1739680326258,10.34328667,2700.3,2700.0,0.09284445]
[1739680326259,0.8233,2700.2,2700.0,0.08776959]
[1739680326471,4.71262151,2700.1,2700.0,0.08776959]
[1739680326642,6.36223952,2700.1,2700.0,0.08776959]
[1739680329428,11.62261596,2700.1,2700.0,0.08776959]
[1739680333363,13.33523747,2700.1,2700.0,0.08776959]
[1739680333575,13.43523747,2700.1,2700.0,0.08776959]
[1739680333769,13.63523747,2700.1,2700.0,0.08776959]
[1739680336331,16.40823747,2700.1,2700.0,0.08776959]
[1739680337970,16.77883747,2700.1,2700.0,0.08776959]
[1739680338273,16.40823747,2700.1,2700.0,0.08776959]
[1739680339972,20.30723747,2700.1,2700.0,0.08776959]
[1739680348369,16.40823747,2700.1,2700.0,0.08776959]
[1739680348543,13.63523747,2700.1,2700.0,0.08776959]
[1739680348853,13.89623747,2700.1,2700.0,0.08776959]
[1739680349769,12.08361596,2700.1,2700.0,0.08776959]
[1739680349943,11.88361596,2700.1,2700.0,0.08776959]
[1739680353158,10.79931596,2700.1,2700.0,0.08776959]
[1739680353361,11.06031596,2700.1,2700.0,0.08776959]
[1739680353868,10.79931596,2700.1,2700.0,0.08776959]
[1739680354064,6.97299795,2700.1,2700.0,0.08776959]
[1739680354473,6.97299795,2700.1,2700.0,0.14525761]
[1739680354678,9.97299795,2700.1,2700.0,0.08776959]
[1739680355887,9.97299795,2700.1,2700.0,0.14525761]
[1739680357671,9.97299795,2700.1,2700.0,0.08776959]
[1739680358076,9.97299795,2700.1,2700.0,0.14525761]
[1739680358775,8.26037644,2700.1,2700.0,0.14525761]
[1739680364682,8.26037644,2700.1,2700.0,0.92945761]
[1739680377203,5.26037644,2700.1,2700.0,0.92945761]
[1739680387661,0.00555493,2700.3,2700.1,0.7639]
[1739680388029,0.00555493,2700.3,2700.2,0.0568531]
[1739680388863,0.00555493,2700.3,2700.2,0.8207531]
[1739680390936,0.00555493,2700.3,2700.2,6.23679461]
[1739680392473,0.00555493,2700.3,2700.2,6.27382507]
[1739680393883,0.00555493,2700.3,2700.2,7.28033354]
[1739680394179,0.00555493,2700.3,2700.2,7.24330308]
[1739680395049,0.00555493,2700.3,2700.2,7.28033353]
[1739680398049,0.00555493,2700.3,2700.2,7.24330308]
[1739680398468,0.00555493,2700.3,2700.2,7.28032993]
[1739680399694,0.00555493,2700.3,2700.2,7.24330308]
[1739680401280,0.00555493,2700.3,2700.2,7.83033046]
[1739680401487,0.00555493,2700.3,2700.2,7.79330308]
[1739680415610,0.00555493,2700.3,2700.2,8.05330308]
[1739680417609,0.00555493,2700.3,2700.2,11.05330308]
[1739680418614,0.00555493,2700.3,2700.2,17.05024453]
[1739680427287,4.93e-06,2700.3,2700.2,17.05024453]
[1739680429486,4.93e-06,2700.3,2700.2,17.6713626]
[1739680432012,0.29426182,2701.4,2701.0,3.7022]
[1739680432215,0.29426182,2701.4,2701.1,1.76814588]
[1739680434659,0.29426182,2701.4,2701.1,5.47031588]
[1739680440646,0.29426182,2701.4,2701.1,1.76814588]
[1739680441146,0.29426182,2701.4,2701.1,1.77369917]
[1739680445354,0.29426182,2701.4,2701.1,5.47584917]
[1739680445547,0.29426182,2701.4,2701.1,1.77369917]
[1739680446120,2.47e-06,2701.5,2701.4,0.55]
[1739680446321,2.47e-06,2701.5,2701.4,4.51178]
[1739680446627,2.47e-06,2701.5,2701.4,7.56697569]
[1739680448854,2.47e-06,2701.5,2701.4,8.32068945]
[1739680449054,2.47e-06,2701.5,2701.4,11.4869485]
[1739680449250,2.47e-06,2701.5,2701.4,11.2269485]
[1739680461769,2.47e-06,2701.5,2701.4,10.47323474]
[1739680462287,2.47e-06,2701.5,2701.4,6.22145474]
[1739680462431,2.47e-06,2701.5,2701.4,0.05519569]
[1739680462766,2.47e-06,2701.5,2701.2,5.41168895]
[1739680462962,0.83230247,2701.5,2701.4,0.05279937]
[1739680463162,0.83230247,2701.5,2701.3,0.052877]
[1739680463362,0.83230247,2701.5,2701.4,0.05279937]
[1739680464064,0.83230247,2701.5,2701.1,0.00555329]
[1739680464231,0.83230247,2701.5,2701.4,0.05279937]
[1739680464431,0.83230247,2701.5,2701.1,3.70773329]
[1739680464637,0.83230247,2701.5,2701.2,0.05295464]
[1739680466246,0.83230247,2701.5,2701.2,1.76263359]
[1739680482396,0.83230247,2701.5,2701.2,2.68423974]
[1739680484267,0.83230247,2701.5,2701.2,1.76263359]
[1739680497328,0.83230247,2701.5,2701.4,1.70967895]
[1739680497615,2.47e-06,2701.5,2701.3,0.05301465]
[1739680497813,2.47e-06,2701.5,2701.4,0.05304789]
[1739680498291,2.47e-06,2701.5,2701.1,0.55555329]
[1739680498479,2.47e-06,2701.5,2701.2,1.05405969]
[1739680498690,2.47e-06,2701.5,2701.3,0.05312552]
[1739680498922,2.47e-06,2701.5,2701.2,1.05405969]
[1739680499110,2.47e-06,2701.5,2701.4,0.05304789]
[1739680499312,2.47e-06,2701.5,2701.2,1.05405969]
[1739680499628,2.47e-06,2701.5,2701.4,0.05304789]
[1739680500227,2.47e-06,2701.5,2701.2,1.05405969]
[1739680500403,2.47e-06,2701.5,2701.4,0.05304789]
[1739680500897,2.47e-06,2701.5,2701.2,1.05405969]
[1739680501092,2.47e-06,2701.5,2701.4,0.05304789]
[1739680501301,2.47e-06,2701.5,2701.2,6.46568864]
[1739680501526,2.47e-06,2701.5,2701.4,0.05304789]
[1739680501820,2.47e-06,2701.5,2701.4,6.0670201]
[1739680502022,2.47e-06,2701.5,2701.4,6.12006799]
[1739680503043,2.47e-06,2701.5,2701.4,2.41828799]
[1739680503522,2.47e-06,2701.5,2701.4,6.67006799]
[1739680505154,2.47e-06,2701.5,2701.4,0.05304789]
[1739680505493,2.47e-06,2701.5,2701.4,0.05292935]
[1739680505721,2.47e-06,2701.5,2701.2,2.76373864]
[1739680506140,2.47e-06,2701.5,2701.3,0.05300698]
[1739680506345,2.47e-06,2701.5,2701.2,2.76373864]
[1739680506518,2.47e-06,2701.5,2701.3,1.09960819]
[1739680506729,2.47e-06,2701.5,2701.3,1.15261517]
[1739680508524,2.47e-06,2701.5,2701.3,0.05300698]
[1739680508848,2.47e-06,2701.5,2701.2,1.70967895]
[1739680509042,2.47e-06,2701.5,2701.4,0.05111575]
[1739680509243,2.47e-06,2701.5,2701.3,0.05119338]
[1739680509443,2.47e-06,2701.5,2701.4,0.0511234]
[1739680509866,2.47e-06,2701.5,2701.4,1.70967895]
[1739680510162,2.47e-06,2701.5,2701.4,2.58171079]
[1739680512232,2.47e-06,2701.5,2701.4,6.28349079]
[1739680512437,2.47e-06,2701.5,2701.4,7.32274143]
[1739680512640,2.47e-06,2701.5,2701.4,2.76134837]
[1739680512841,2.47e-06,2701.5,2701.4,1.75911079]
[1739680513459,2.47e-06,2701.5,2701.4,0.04943184]
[1739680513755,2.47e-06,2701.5,2701.2,1.70967895]
[1739680513962,2.47e-06,2701.5,2701.4,0.04940508]
[1739680514346,2.47e-06,2701.5,2701.1,0.00555329]
[1739680514550,2.47e-06,2701.5,2701.4,0.04940509]
[1739680514740,2.47e-06,2701.5,2701.1,0.00555329]
[1739680515262,2.47e-06,2701.5,2701.2,0.04956035]
[1739680515948,2.47e-06,2701.5,2701.2,1.7592393]
[1739680521370,0.3661,2701.4,2701.2,0.04956035]
[1739680526175,1.36610789,2701.3,2701.2,0.04956035]
[1739680529244,1.36610789,2701.3,2701.1,0.00555329]
[1739680529674,1.36610789,2701.3,2701.2,0.04736961]
[1739680530180,1.36610789,2701.3,2701.1,0.00555329]
[1739680530379,1.36610789,2701.3,2701.2,0.04743411]
[1739680530577,1.36610789,2701.3,2701.1,0.00555329]
[1739680530764,0.73699267,2701.2,2701.1,0.00555329]
[1739680532681,5.26037644,2701.4,2701.1,0.00555329]
[1739680535982,5.26037644,2701.4,2701.2,1.70967895]
[1739680536281,5.26037644,2701.4,2701.3,0.8192]
[1739680536865,5.26037644,2701.4,2701.3,0.94130513]
[1739680537181,5.26037644,2701.4,2701.3,4.64322513]
[1739680537485,2.47e-06,2701.5,2701.3,4.64322513]
[1739680537857,2.47e-06,2701.5,2701.3,5.64928287]
[1739680538893,2.47e-06,2701.5,2701.4,5.41145895]
[1739680539184,2.47e-06,2701.5,2701.4,2.38170369]
[1739680543449,2.47e-06,2701.5,2701.4,6.08348369]
[1739680551402,2.47e-06,2701.5,2701.4,0.67202474]
[1739680551872,2.47e-06,2701.5,2701.4,4.37380474]
[1739680553081,2.47e-06,2701.5,2701.4,3.82380474]
[1739680553285,2.47e-06,2701.5,2701.4,0.12202474]
[1739680553784,2.47e-06,2701.5,2701.4,0.11736854]
[1739680553979,2.47e-06,2701.5,2701.2,5.41167895]
[1739680554183,2.47e-06,2701.5,2701.3,0.11744893]
[1739680554391,2.47e-06,2701.5,2701.2,1.70967895]
[1739680554706,2.47e-06,2701.5,2701.3,0.11744893]
[1739680555073,2.47e-06,2701.5,2701.2,1.70967895]
[1739680555409,2.47e-06,2701.5,2701.3,0.11744893]
[1739680555702,2.47e-06,2701.5,2701.2,1.70967895]
[1739680555885,2.47e-06,2701.5,2701.4,0.11736854]
[1739680556085,2.47e-06,2701.5,2701.3,0.11744893]
[1739680556409,2.47e-06,2701.5,2701.4,0.11736854]
[1739680556597,2.47e-06,2701.5,2701.4,0.02]
[1739680556797,2.47e-06,2701.5,2701.4,0.13736854]
[1739680569649,2.47e-06,2701.5,2701.4,5.54882749]
[1739680569852,2.47e-06,2701.5,2701.4,6.50355871]
[1739680571366,2.47e-06,2701.5,2701.4,0.13736854]
[1739680572273,2.47e-06,2701.5,2701.4,3.83914854]
[1739680574877,2.47e-06,2701.5,2701.4,0.13736854]
[1739680576148,0.82610247,2701.5,2701.4,0.13736854]
[1739680582794,2.47e-06,2701.5,2701.4,0.13736854]
[1739680585999,2.47e-06,2701.5,2701.4,2.60794749]
[1739680586301,2.47e-06,2701.5,2701.4,7.49440892]
[1739680600030,2.47e-06,2701.5,2701.4,8.23146144]
[1739680618324,2.47e-06,2701.5,2701.4,11.23146144]
[1739680630694,4.63611661,2701.8,2701.6,0.7561]
[1739680630852,4.63611661,2701.8,2701.7,15.34714895]
[1739680631169,4.63611661,2701.8,2701.7,18.78042973]
[1739680634062,4.63611661,2701.8,2701.7,27.08542973]
[1739680635888,4.63611661,2701.8,2701.7,27.27347533]
[1739680637389,4.63611661,2701.8,2701.7,27.01347533]
[1739680637552,4.63611661,2701.8,2701.7,22.11575078]
[1739680637887,4.63611661,2701.8,2701.7,24.35965078]
[1739680638389,4.63611661,2701.8,2701.7,20.48881899]
[1739680638577,5.41091661,2701.8,2701.7,17.48881899]
[1739680638764,5.41091661,2701.8,2701.7,9.18381899]
[1739680639588,5.41091661,2701.8,2701.7,9.73381899]
[1739680639791,5.41091661,2701.8,2701.7,5.48244899]
[1739680641488,5.41091661,2701.8,2701.7,3.81381899]
[1739680642091,5.41091661,2701.8,2701.7,0.11244899]
[1739680643460,5.41091661,2701.8,2701.7,3.81381899]
[1739680643958,4.63611661,2701.8,2701.7,4.36381899]
[1739680644394,4.63611661,2701.8,2701.7,0.11244899]
[1739680644697,5.17720827,2701.8,2701.7,0.11244899]
[1739680644999,5.17720827,2701.8,2701.5,0.55]
[1739680645221,5.17720827,2701.8,2701.7,0.11248006]
[1739680645387,5.17720827,2701.8,2701.6,0.11256043]
[1739680645572,5.17720827,2701.8,2701.7,0.11248006]
[1739680645959,5.17720827,2701.8,2701.5,4.25154]
[1739680646197,5.17720827,2701.8,2701.7,0.11263674]
[1739680646397,5.17720827,2701.8,2701.6,0.11271711]
[1739680646703,5.17720827,2701.8,2701.7,0.11263674]
[1739680646905,5.17720827,2701.8,2701.5,4.25154]
[1739680647084,5.17720827,2701.8,2701.7,0.11263674]
[1739680647287,5.17720827,2701.8,2701.6,3.7015]
[1739680647594,5.17720827,2701.8,2701.7,0.11263674]
[1739680648294,5.95200827,2701.8,2701.7,0.11263674]
[1739680648499,5.95200827,2701.8,2701.5,0.55]
[1739680648796,5.95200827,2701.8,2701.7,0.11263674]
[1739680649008,5.95200827,2701.8,2701.6,0.11271711]
[1739680649305,5.95200827,2701.8,2701.7,0.11263674]
[1739680649504,5.95200827,2701.8,2701.5,0.55]
[1739680649801,5.41091661,2701.8,2701.7,0.11263674]
[1739680650003,5.41091661,2701.8,2701.6,0.11271711]
[1739680650195,5.41091661,2701.8,2701.7,0.11263674]
[1739680650505,5.41091661,2701.8,2701.5,4.25164]
[1739680650707,5.41091661,2701.8,2701.7,0.11263674]
[1739680650886,5.41091661,2701.8,2701.5,4.25164]
[1739680651085,5.41091661,2701.8,2701.7,0.11263674]
[1739680651271,5.41091661,2701.8,2701.5,4.25164]
[1739680651473,5.41091661,2701.8,2701.7,0.11263674]
[1739680651775,5.41091661,2701.8,2701.5,4.25164]
[1739680651974,5.41091661,2701.8,2701.7,0.13263674]
[1739680654489,5.41091661,2701.8,2701.7,3.83400674]
[1739680654686,4.63611661,2701.8,2701.7,5.36351931]
[1739680657608,4.63611661,2701.8,2701.7,6.16101931]
[1739680659136,4.63611661,2701.8,2701.7,11.53101931]
[1739680663963,4.63611661,2701.8,2701.7,14.53101931]
[1739680667855,4.63611661,2701.8,2701.7,13.73351931]
[1739680670458,4.63611661,2701.8,2701.7,12.75400674]
[1739680670644,5.44301661,2701.8,2701.7,12.20400674]
[1739680670833,5.44301661,2701.8,2701.7,12.75400674]
[1739680672224,5.44301661,2701.8,2701.7,9.75400674]
[1739680673953,5.44301661,2701.8,2701.7,4.38400674]
[1739680676030,4.63611661,2701.8,2701.7,5.25465685]
[1739680676334,4.63611661,2701.8,2701.7,4.38400674]
[1739680685592,4.63611661,2701.8,2701.7,0.13263674]
[1739680685870,5.42211661,2701.8,2701.7,0.13263674]
[1739680717445,4.63611661,2701.8,2701.7,0.13263674]
[1739680718891,4.63611661,2701.8,2701.7,4.61130674]
[1739680719221,4.63611661,2701.8,2701.7,5.4708292]
[1739680719690,4.63611661,2701.8,2701.7,4.61130674]
[1739680720095,4.63611661,2701.8,2701.7,0.90993674]
[1739680720576,4.63611661,2701.8,2701.7,4.61130674]
[1739680722000,4.63611661,2701.8,2701.7,5.16130674]
[1739680730101,4.63611661,2701.8,2701.7,8.16130674]
[1739680730294,4.63611661,2701.8,2701.7,9.76281297]
[1739680730499,4.63611661,2701.8,2701.7,10.02281297]
[1739680732481,4.63611661,2701.8,2701.7,10.20756291]
[1739680733400,4.63611661,2701.8,2701.7,15.57756291]
[1739680737221,0.00555123,2702.1,2701.9,0.8137]
[1739680737517,0.00555123,2702.1,2702.0,6.39700895]
[1739680737693,0.00555123,2702.1,2702.0,6.50539047]
[1739680739106,0.00555123,2702.1,2702.0,7.31909047]
[1739680750019,0.00555123,2702.1,2702.0,10.31909047]